[Event "Turkish Cup 2024"]
[Site "Denizli"]
[Date "2024.08.04"]
[Round "9"]
[White "Sezis, Doruk"]
[Black "Ekinci, Berkay"]
[Result "1/2-1/2"]
[ECO "A19"]
[WhiteElo "1932"]
[BlackElo "1976"]
[Annotator "RC"]
[PlyCount "127"]
[EventDate "2024.08.01"]
[EventType "swiss"]
[EventCountry "TUR"]
[SourceTitle "playchess.com"]
[Source "ChessBase"]
[SourceQuality "1"]
[TimeControl "5400+30"]

1. c4 {[%emt 0:01:00]} Nf6 {[%emt 0:06:00]} 2. Nc3 {[%emt 0:00:30]} e6 {[%emt 0:00:30]} 3. e4 {[%emt 0:11:30]} c5 {[%emt 0:00:00]} 4. e5 {[%emt 0:25:30]} Ng8 {[%emt 0:00:00]} 5. f4 {[%emt 0:01:30]} Nc6 {[%emt 0:02:30]} 6. Nf3 {[%emt 0:00:30]} d6 {[%emt 0:00:30]} 7. d3 {[%emt 0:06:30]} Nge7 {[%emt 0:01:30]} 8. exd6 {[%emt 0:08:30]} Nf5 {[%emt 0:00:00]} 9. Ne4 {[%emt 0:00:30]} Bxd6 {[%emt 0:01:00]} 10. g3 {[%emt 0:02:30]} e5 {[%emt 0:09:30]} 11. Nxd6+ {[%emt 0:03:30]} Qxd6 {[%emt 0:00:30]} 12. fxe5 {[%emt 0:00:30]} Nxe5 {[%emt 0:03:30]} 13. Bf4 {[%emt 0:04:30]} Nxf3+ {[%emt 0:04:30]} 14. Qxf3 {[%emt 0:00:30]} Qe6+ {[%emt 0:01:30]} 15. Qe4 {[%emt 0:03:30]} Nd4 {[%emt 0:03:30]} 16. O-O-O {[%emt 0:00:30]} Qxe4 {[%emt 0:01:30]} 17. dxe4 {[%emt 0:00:00]} Bg4 {[%emt 0:00:00]} 18. Re1 {[%emt 0:04:00]} O-O-O {[%emt 0:03:00]} 19. h4 {[%emt 0:06:29]} Rhe8 {[%emt 0:11:30]} 20. Re3 {[%emt 0:05:57]} Ne6 {[%emt 0:03:30]} 21. Bd3 {[%emt 0:00:26]} f6 {[%emt 0:04:30]} 22. Kd2 {[%emt 0:05:32]} Nd4 {[%emt 0:03:30]} 23. Kc3 {[%emt 0:02:07]} Nc6 24. e5 {[%emt 0:03:55]} g5 {[%emt 0:08:00]} 25. hxg5 {[%emt 0:00:50]} fxe5 {[%emt 0:00:30]} 26. Rhe1 {[%emt 0:00:00]} b5 {[%emt 0:08:30]} 27. cxb5 {[%emt 0:00:18]} Ne7 {[%emt 0:02:30]} 28. Rxe5 {[%emt 0:01:16]} Nd5+ {[%emt 0:00:30]} 29. Rxd5 {[%emt 0:00:22]} Rxe1 {[%emt 0:00:30]} 30. Rxc5+ {[%emt 0:00:05]} Kb7 {[%emt 0:00:00]} 31. Bxh7 {[%emt 0:00:59]} Be6 {[%emt 0:01:00]} 32. a4 {[%emt 0:01:04]} Bd5 {[%emt 0:01:30]} 33. Bf5 {[%emt 0:01:28]} a6 {[%emt 0:04:38]} 34. bxa6+ {[%emt 0:00:01]} Kxa6 {[%emt 0:00:14]} 35. g6 {[%emt 0:00:20]} Kb7 {[%emt 0:01:56]} 36. Rxd5 {[%emt 0:01:33]} Rxd5 {[%emt 0:00:30]} 37. g7 {[%emt 0:00:00]} Rd8 {[%emt 0:00:45]} 38. Bh7 {[%emt 0:00:00]} Ree8 {[%emt 0:00:59]} 39. g4 {[%emt 0:00:41]} Rc8+ {[%emt 0:00:20]} 40. Kb4 {[%emt 0:00:54]} Kc6 {[%emt 0:00:15]} 41. a5 {[%emt 0:00:34]} Kd5 {[%emt 0:00:36]} 42. g8=Q+ {[%emt 0:00:30]} Rxg8 {[%emt 0:00:00]} 43. Bxg8+ {[%emt 0:00:00]} Rxg8 {[%emt 0:00:07]} 44. g5 {[%emt 0:00:09]} Kc6 {[%emt 0:00:41]} 45. Kc4 {[%emt 0:01:02]} Re8 {[%emt 0:00:00]} 46. Bd2 {[%emt 0:00:50]} Re4+ {[%emt 0:00:40]} 47. Kd3 {[%emt 0:00:06]} Rg4 {[%emt 0:00:31]} 48. b4 {[%emt 0:01:13]} Kb5 {[%emt 0:00:00]} 49. Ke2 {[%emt 0:00:45]} Rg2+ {[%emt 0:00:17]} 50. Kd3 {[%emt 0:00:00]} Rg4 {[%emt 0:00:37]} 51. Ke2 {[%emt 0:00:20]} Rg2+ {[%emt 0:00:30]} 52. Ke1 {[%emt 0:00:30]} Ka6 {[%emt 0:00:30]} 53. Be3 {[%emt 0:00:30]} Kb5 {[%emt 0:00:00]} 54. Kf1 {[%emt 0:00:14]} Rg4 {[%emt 0:00:05]} 55. Bd2 {[%emt 0:00:05]} Rd4 {[%emt 0:01:01]} 56. Ke2 {[%emt 0:00:09]} Rg4 {[%emt 0:00:26]} 57. Kf3 {[%emt 0:00:00]} Rd4 {[%emt 0:01:53]} 58. Be1 {[%emt 0:00:00]} Rd1 {[%emt 0:00:42]} 59. Bf2 {[%emt 0:00:00]} Kxb4 {[%emt 0:01:11]} 60. a6 {[%emt 0:00:00]} Kb5 {[%emt 0:01:02]} 61. a7 {[%emt 0:00:00]} Rd8 {[%emt 0:00:00]} 62. Bg3 {[%emt 0:00:00]} Kc6 {[%emt 0:00:52]} 63. Bb8 {[%emt 0:00:20]} Kb7 {[%emt 0:00:00]} 64. Ke4 {[%emt 0:00:14]} 1/2-1/2

[Event "Turkish Cup 2024"]
[Site "Denizli"]
[Date "2024.08.04"]
[Round "9"]
[White "Demirag, Batuhan"]
[Black "Akyuz, Murat"]
[Result "1-0"]
[ECO "A08"]
[WhiteElo "1912"]
[BlackElo "1890"]
[Annotator "RC"]
[PlyCount "77"]
[EventDate "2024.08.01"]
[EventType "swiss"]
[EventCountry "TUR"]
[SourceTitle "playchess.com"]
[Source "ChessBase"]
[SourceQuality "1"]
[TimeControl "5400+30"]

1. Nf3 {[%emt 0:01:00]} d5 {[%emt 0:01:00]} 2. g3 {[%emt 0:00:30]} c5 {[%emt 0:00:00]} 3. Bg2 {[%emt 0:00:00]} Nc6 {[%emt 0:00:00]} 4. O-O {[%emt 0:01:00]} e5 {[%emt 0:00:30]} 5. d3 {[%emt 0:00:00]} Be7 {[%emt 0:01:30]} 6. Nbd2 {[%emt 0:00:00]} Nf6 {[%emt 0:00:00]} 7. e4 {[%emt 0:01:30]} d4 {[%emt 0:00:00]} 8. Nc4 {[%emt 0:00:30]} Qc7 {[%emt 0:00:30]} 9. a4 {[%emt 0:00:30]} Bg4 {[%emt 0:02:30]} 10. h3 {[%emt 0:01:30]} Be6 {[%emt 0:00:30]} 11. b3 {[%emt 0:09:30]} h6 {[%emt 0:02:30]} 12. Nh4 {[%emt 0:01:30]} Qd7 {[%emt 0:05:30]} 13. Kh2 {[%emt 0:02:30]} g5 {[%emt 0:01:30]} 14. Nf5 {[%emt 0:02:30]} Bxf5 {[%emt 0:02:30]} 15. exf5 {[%emt 0:00:00]} Qxf5 {[%emt 0:05:30]} 16. Qe2 {[%emt 0:01:00]} O-O {[%emt 0:12:30]} 17. f4 {[%emt 0:07:30]} gxf4 {[%emt 0:04:30]} 18. gxf4 {[%emt 0:00:30]} exf4 {[%emt 0:07:30]} 19. Bxf4 {[%emt 0:10:30]} Qe6 {[%emt 0:11:30]} 20. Qxe6 {[%emt 0:00:30]} fxe6 {[%emt 0:00:00]} 21. Bxh6 {[%emt 0:00:30]} Rf7 {[%emt 0:02:00]} 22. Rae1 {[%emt 0:02:30]} e5 {[%emt 0:05:30]} 23. Kh1 {[%emt 0:03:30]} e4 {[%emt 0:05:30]} 24. dxe4 {[%emt 0:00:30]} Nd7 {[%emt 0:05:30]} 25. Rf5 {[%emt 0:05:30]} Nb4 {[%emt 0:04:30]} 26. Re2 {[%emt 0:05:30]} Re8 {[%emt 0:04:25]} 27. Rxf7 {[%emt 0:13:30]} Kxf7 {[%emt 0:00:08]} 28. e5 {[%emt 0:00:30]} Nf8 {[%emt 0:02:19]} 29. Bxb7 {[%emt 0:04:30]} Ne6 {[%emt 0:01:13]} 30. Rf2+ {[%emt 0:01:30]} Kg6 {[%emt 0:00:24]} 31. Bd2 {[%emt 0:00:30]} Bg5 {[%emt 0:01:17]} 32. Be4+ {[%emt 0:00:30]} Kg7 {[%emt 0:03:12]} 33. Rg2 {[%emt 0:00:30]} Kh6 {[%emt 0:02:22]} 34. Rxg5 {[%emt 0:01:30]} Nxg5 {[%emt 0:00:30]} 35. h4 {[%emt 0:00:00]} d3 {[%emt 0:03:03]} 36. cxd3 {[%emt 0:01:00]} Kh5 {[%emt 0:00:49]} 37. Bxg5 {[%emt 0:00:30]} Kg4 {[%emt 0:00:10]} 38. Kg2 {[%emt 0:00:00]} Nc2 {[%emt 0:00:04]} 39. Bf3+ {[%emt 0:00:00]} 1-0

[Event "Turkish Cup 2024"]
[Site "Denizli"]
[Date "2024.08.04"]
[Round "9"]
[White "Herdem, Talha"]
[Black "Tutuncu, Ali"]
[Result "0-1"]
[ECO "B06"]
[WhiteElo "1911"]
[BlackElo "2041"]
[Annotator "RC"]
[PlyCount "66"]
[EventDate "2024.08.01"]
[EventType "swiss"]
[EventCountry "TUR"]
[SourceTitle "playchess.com"]
[Source "ChessBase"]
[SourceQuality "1"]
[TimeControl "5400+30"]

1. e4 {[%emt 0:06:00]} g6 {[%emt 0:01:00]} 2. d4 {[%emt 0:00:00]} Bg7 {[%emt 0:00:00]} 3. Nc3 {[%emt 0:00:00]} d6 {[%emt 0:00:00]} 4. Bg5 {[%emt 0:00:30]} a6 {[%emt 0:00:00]} 5. Qd2 {[%emt 0:00:30]} b5 {[%emt 0:00:00]} 6. O-O-O {[%emt 0:01:30]} h6 {[%emt 0:00:30]} 7. Be3 {[%emt 0:00:00]} Bb7 {[%emt 0:00:30]} 8. f3 {[%emt 0:01:00]} Nd7 {[%emt 0:00:30]} 9. g4 {[%emt 0:01:30]} Rc8 {[%emt 0:00:30]} 10. h4 {[%emt 0:00:30]} c5 {[%emt 0:00:30]} 11. Nce2 {[%emt 0:06:30]} b4 {[%emt 0:03:30]} 12. Kb1 {[%emt 0:03:30]} Qc7 {[%emt 0:12:30]} 13. Nh3 {[%emt 0:07:30]} Nb6 {[%emt 0:01:30]} 14. b3 {[%emt 0:04:30]} c4 {[%emt 0:06:30]} 15. Ng3 {[%emt 0:09:30]} a5 {[%emt 0:06:30]} 16. h5 {[%emt 0:01:30]} g5 {[%emt 0:00:30]} 17. f4 {[%emt 0:04:30]} Nf6 {[%emt 0:00:30]} 18. Nf2 {[%emt 0:09:30]} d5 {[%emt 0:03:30]} 19. e5 {[%emt 0:09:30]} Ne4 {[%emt 0:00:30]} 20. Nfxe4 {[%emt 0:00:00]} dxe4 {[%emt 0:00:00]} 21. Nf5 {[%emt 0:01:00]} cxb3 {[%emt 0:02:00]} 22. Bb5+ {[%emt 0:09:30]} Kf8 {[%emt 0:00:30]} 23. cxb3 {[%emt 0:01:30]} gxf4 {[%emt 0:01:30]} 24. Bxf4 {[%emt 0:09:43]} e3 {[%emt 0:03:30]} 25. Bxe3 {[%emt 0:00:10]} Bxh1 {[%emt 0:02:30]} 26. Rxh1 {[%emt 0:00:06]} Qb7 {[%emt 0:06:30]} 27. Rf1 {[%emt 0:02:09]} Rc3 {[%emt 0:00:30]} 28. Bd3 {[%emt 0:03:19]} Nd5 {[%emt 0:03:30]} 29. Nxg7 {[%emt 0:04:35]} Nxe3 {[%emt 0:00:30]} 30. Qxe3 {[%emt 0:00:44]} Kxg7 {[%emt 0:00:30]} 31. Qf4 {[%emt 0:01:14]} Qd5 {[%emt 0:00:30]} 32. Be4 {[%emt 0:03:13]} Rxb3+ {[%emt 0:00:30]} 33. Ka1 {[%emt 0:00:51]} Qxd4# {[%emt 0:00:30]} 0-1

[Event "Turkish Cup 2024"]
[Site "Denizli"]
[Date "2024.08.04"]
[Round "9"]
[White "Karadag, Eflatun Cem"]
[Black "Metin, Enis"]
[Result "0-1"]
[ECO "A47"]
[WhiteElo "1883"]
[BlackElo "2142"]
[Annotator "RC"]
[PlyCount "124"]
[EventDate "2024.08.01"]
[EventType "swiss"]
[EventCountry "TUR"]
[SourceTitle "playchess.com"]
[Source "ChessBase"]
[SourceQuality "1"]
[TimeControl "5400+30"]

1. d4 {[%emt 0:01:00]} Nf6 {[%emt 0:04:00]} 2. Nf3 {[%emt 0:00:30]} e6 {[%emt 0:00:00]} 3. e3 {[%emt 0:00:00]} c5 {[%emt 0:01:00]} 4. c3 {[%emt 0:00:00]} b6 {[%emt 0:01:30]} 5. Bd3 {[%emt 0:00:30]} Bb7 {[%emt 0:00:30]} 6. Nbd2 {[%emt 0:00:00]} d6 {[%emt 0:00:30]} 7. Qe2 {[%emt 0:01:00]} Nbd7 {[%emt 0:00:30]} 8. e4 {[%emt 0:01:30]} e5 {[%emt 0:02:30]} 9. dxe5 {[%emt 0:01:30]} dxe5 {[%emt 0:00:30]} 10. O-O {[%emt 0:00:30]} Be7 {[%emt 0:00:30]} 11. Rd1 {[%emt 0:01:30]} O-O {[%emt 0:00:30]} 12. Ba6 {[%emt 0:01:30]} Bc6 {[%emt 0:00:00]} 13. a4 {[%emt 0:00:30]} Qc7 {[%emt 0:00:00]} 14. Bb5 {[%emt 0:00:30]} Rfd8 {[%emt 0:05:30]} 15. a5 {[%emt 0:06:30]} Bxb5 {[%emt 0:00:30]} 16. Qxb5 {[%emt 0:00:30]} a6 {[%emt 0:00:00]} 17. axb6 {[%emt 0:00:30]} axb5 {[%emt 0:00:00]} 18. bxc7 {[%emt 0:00:30]} Rxa1 {[%emt 0:01:30]} 19. cxd8=Q+ {[%emt 0:00:30]} Bxd8 {[%emt 0:00:00]} 20. Nb3 {[%emt 0:00:30]} Ra8 {[%emt 0:00:00]} 21. Bg5 {[%emt 0:02:30]} c4 {[%emt 0:01:30]} 22. Ra1 {[%emt 0:02:30]} Rxa1+ {[%emt 0:06:30]} 23. Nxa1 {[%emt 0:00:30]} Bb6 {[%emt 0:00:30]} 24. Nd2 {[%emt 0:05:30]} Nc5 {[%emt 0:09:30]} 25. Be3 {[%emt 0:11:30]} Ng4 {[%emt 0:00:30]} 26. Nc2 {[%emt 0:02:30]} Kf8 {[%emt 0:03:30]} 27. h3 {[%emt 0:12:30]} Nxe3 {[%emt 0:00:30]} 28. Nxe3 {[%emt 0:00:00]} Nd3 {[%emt 0:07:30]} 29. Nd1 {[%emt 0:02:00]} Bd8 {[%emt 0:04:30]} 30. b3 {[%emt 0:02:30]} Bg5 {[%emt 0:00:30]} 31. Nf3 {[%emt 0:06:30]} Bc1 {[%emt 0:04:30]} 32. bxc4 {[%emt 0:00:30]} bxc4 {[%emt 0:00:00]} 33. Kf1 {[%emt 0:01:30]} f6 {[%emt 0:00:00]} 34. Ne1 {[%emt 0:06:30]} Ke7 {[%emt 0:01:30]} 35. Nc2 {[%emt 0:05:30]} Kd6 {[%emt 0:02:30]} 36. g3 {[%emt 0:03:30]} Kc5 {[%emt 0:02:30]} 37. Ke2 {[%emt 0:01:30]} Kb5 {[%emt 0:01:30]} 38. Nce3 {[%emt 0:01:30]} Ba3 {[%emt 0:00:30]} 39. Kd2 {[%emt 0:01:59]} Bc5 {[%emt 0:00:30]} 40. f3 {[%emt 0:02:35]} h5 {[%emt 0:00:30]} 41. Nf5 {[%emt 0:02:20]} Bf8 {[%emt 0:00:30]} 42. Nfe3 {[%emt 0:02:51]} g6 {[%emt 0:00:30]} 43. Nd5 {[%emt 0:01:31]} Bh6+ {[%emt 0:00:00]} 44. Ke2 {[%emt 0:00:12]} h4 {[%emt 0:03:00]} 45. gxh4 {[%emt 0:02:58]} Nf4+ {[%emt 0:03:30]} 46. Nxf4 {[%emt 0:00:16]} Bxf4 {[%emt 0:00:00]} 47. Nf2 {[%emt 0:01:37]} Ka4 {[%emt 0:00:00]} 48. Ng4 {[%emt 0:00:04]} f5 {[%emt 0:03:30]} 49. exf5 {[%emt 0:00:53]} gxf5 {[%emt 0:00:00]} 50. Ne3 {[%emt 0:01:27]} Kb3 {[%emt 0:00:00]} 51. Nxf5 {[%emt 0:03:15]} Kxc3 {[%emt 0:00:30]} 52. h5 {[%emt 0:00:00]} Kb3 {[%emt 0:02:30]} 53. h6 {[%emt 0:03:03]} Bxh6 {[%emt 0:00:00]} 54. Nxh6 {[%emt 0:00:38]} c3 {[%emt 0:00:00]} 55. Ng4 {[%emt 0:01:03]} c2 {[%emt 0:00:30]} 56. Nxe5 {[%emt 0:00:14]} c1=Q {[%emt 0:00:00]} 57. Nd3 {[%emt 0:00:38]} Qh6 {[%emt 0:00:00]} 58. Nf2 {[%emt 0:00:41]} Kc2 {[%emt 0:00:30]} 59. Kf1 {[%emt 0:00:32]} Kd2 {[%emt 0:00:30]} 60. Kg2 {[%emt 0:00:13]} Ke2 {[%emt 0:00:00]} 61. Ne4 {[%emt 0:00:52]} Qg7+ {[%emt 0:00:00]} 62. Ng3+ {[%emt 0:00:38]} Ke3 {[%emt 0:00:30]} 0-1

[Event "Turkish Cup 2024"]
[Site "Denizli"]
[Date "2024.08.04"]
[Round "9"]
[White "Yuksel, Davut Can"]
[Black "Eroglu, Berke"]
[Result "0-1"]
[ECO "A41"]
[WhiteElo "1882"]
[BlackElo "1873"]
[Annotator "NA COMBH"]
[PlyCount "108"]
[EventDate "2024.08.01"]
[EventType "swiss"]
[EventCountry "TUR"]
[SourceTitle "playchess.com"]
[Source "ChessBase"]
[SourceQuality "1"]
[TimeControl "5400+30"]

1. d4 {[%emt 0:01:00]} d6 {[%emt 0:01:00]} 2. Nf3 {[%emt 0:00:30]} g6 {[%emt 0:00:30]} 3. c4 {[%emt 0:00:30]} Bg7 {[%emt 0:00:30]} 4. Nc3 {[%emt 0:00:00]} e5 {[%emt 0:00:30]} 5. h3 {[%emt 0:03:00]} Nc6 {[%emt 0:02:30]} 6. Bg5 {[%emt 0:01:30]} f6 {[%emt 0:03:30]} 7. Bh4 {[%emt 0:00:30]} g5 {[%emt 0:07:30]} 8. Bg3 {[%emt 0:02:30]} f5 {[%emt 0:01:30]} 9. e3 {[%emt 0:03:30]} e4 {[%emt 0:08:30]} 10. d5 {[%emt 0:01:30]} Bxc3+ {[%emt 0:12:30]} 11. bxc3 {[%emt 0:00:30]} exf3 {[%emt 0:03:30]} 12. dxc6 {[%emt 0:00:30]} Qf6 {[%emt 0:05:30]} 13. Qd4 {[%emt 0:00:30]} bxc6 {[%emt 0:01:30]} 14. gxf3 {[%emt 0:01:30]} c5 {[%emt 0:08:30]} 15. Qxf6 {[%emt 0:02:30]} Nxf6 {[%emt 0:00:00]} 16. Rb1 {[%emt 0:01:30]} Bd7 {[%emt 0:03:00]} 17. h4 {[%emt 0:05:30]} g4 {[%emt 0:01:30]} 18. fxg4 {[%emt 0:00:30]} Bc6 {[%emt 0:00:30]} 19. Rg1 {[%emt 0:00:30]} fxg4 {[%emt 0:02:30]} 20. Bd3 {[%emt 0:03:30]} Be4 {[%emt 0:05:30]} 21. Kd2 {[%emt 0:02:30]} Kd7 {[%emt 0:11:55]} 22. Rb2 {[%emt 0:02:30]} Bxd3 {[%emt 0:02:05]} 23. Kxd3 {[%emt 0:00:30]} Rab8 {[%emt 0:00:35]} 24. Rgb1 {[%emt 0:00:30]} Rxb2 {[%emt 0:00:30]} 25. Rxb2 {[%emt 0:00:00]} Kc6 {[%emt 0:00:01]} 26. a4 {[%emt 0:00:00]} Rf8 {[%emt 0:00:30]} 27. Bf4 {[%emt 0:00:30]} a5 {[%emt 0:00:30]} 28. Rb5 {[%emt 0:00:30]} Ra8 {[%emt 0:00:30]} 29. Rb1 {[%emt 0:00:30]} h5 {[%emt 0:00:30]} 30. Rb5 {[%emt 0:00:30]} Nd7 {[%emt 0:00:30]} 31. Rb1 {[%emt 0:00:30]} Nb6 {[%emt 0:00:30]} 32. Ra1 {[%emt 0:00:30]} Re8 {[%emt 0:00:30]} 33. Ra2 {[%emt 0:00:30]} Kd7 {[%emt 0:00:30]} 34. Rb2 {[%emt 0:00:30]} Ke6 {[%emt 0:00:30]} 35. Bg3 {[%emt 0:00:30]} Kd7 {[%emt 0:00:30]} 36. Bf4 {[%emt 0:00:30]} Ra8 {[%emt 0:00:30]} 37. Ra2 {[%emt 0:00:30]} Kc6 {[%emt 0:10:16]} 38. Bg3 {[%emt 0:24:30]} Rb8 {[%emt 0:00:35]} 39. Ra1 {[%emt 0:06:30]} Nd7 {[%emt 0:01:57]} 40. Ke4 {[%emt 0:00:30]} Rf8 {[%emt 0:00:19]} 41. Ra2 {[%emt 0:00:30]} Nf6+ {[%emt 0:00:53]} 42. Kf5 {[%emt 0:02:30]} Nd5+ {[%emt 0:01:58]} 43. Kg6 {[%emt 0:00:30]} Nxc3 {[%emt 0:00:14]} 44. Ra3 {[%emt 0:00:00]} Ne4 {[%emt 0:00:14]} 45. Kxh5 {[%emt 0:02:00]} Nxf2 {[%emt 0:00:00]} 46. Bxf2 {[%emt 0:01:30]} Rxf2 {[%emt 0:00:23]} 47. Kxg4 {[%emt 0:00:30]} Rc2 {[%emt 0:00:30]} 48. h5 {[%emt 0:00:30]} Rxc4+ {[%emt 0:00:30]} 49. Kg5 {[%emt 0:00:30]} Rc1 {[%emt 0:00:30]} 50. e4 {[%emt 0:00:30]} Rg1+ {[%emt 0:00:46]} 51. Kf4 {[%emt 0:00:30]} Rh1 {[%emt 0:00:57]} 52. Kg4 {[%emt 0:00:30]} c4 {[%emt 0:00:08]} 53. Rf3 {[%emt 0:01:30]} Kc5 {[%emt 0:01:12]} 54. Rf7 {[%emt 0:02:30]} c6 {[%emt 0:00:38]} 0-1

[Event "Turkish Cup 2024"]
[Site "Denizli"]
[Date "2024.08.04"]
[Round "9"]
[White "Avsar, Gediz"]
[Black "Polat, Ali Gorkem"]
[Result "1-0"]
[ECO "B31"]
[WhiteElo "1880"]
[BlackElo "1798"]
[Annotator "NA COMBH"]
[PlyCount "75"]
[EventDate "2024.08.01"]
[EventType "swiss"]
[EventCountry "TUR"]
[SourceTitle "playchess.com"]
[Source "ChessBase"]
[SourceQuality "1"]
[TimeControl "5400+30"]

1. e4 {[%emt 0:01:00]} c5 {[%emt 0:05:00]} 2. Nf3 {[%emt 0:00:30]} Nc6 {[%emt 0:00:30]} 3. Bb5 {[%emt 0:00:00]} g6 {[%emt 0:00:00]} 4. Bxc6 {[%emt 0:00:00]} dxc6 {[%emt 0:00:00]} 5. d3 {[%emt 0:00:00]} Bg7 {[%emt 0:00:00]} 6. h3 {[%emt 0:00:00]} e5 {[%emt 0:00:00]} 7. O-O {[%emt 0:00:30]} Qe7 {[%emt 0:00:00]} 8. Nc3 {[%emt 0:02:30]} Nf6 {[%emt 0:00:00]} 9. Be3 {[%emt 0:01:30]} O-O {[%emt 0:00:30]} 10. Qd2 {[%emt 0:12:30]} b6 {[%emt 0:04:30]} 11. Bh6 {[%emt 0:03:30]} Nd7 {[%emt 0:03:30]} 12. Bxg7 {[%emt 0:03:30]} Kxg7 {[%emt 0:00:30]} 13. Rae1 {[%emt 0:00:30]} Ba6 {[%emt 0:04:30]} 14. b3 {[%emt 0:00:30]} Rad8 {[%emt 0:00:30]} 15. Nh2 {[%emt 0:04:30]} Nf6 {[%emt 0:03:30]} 16. f4 {[%emt 0:06:30]} c4 {[%emt 0:05:30]} 17. bxc4 {[%emt 0:01:30]} Bxc4 {[%emt 0:00:30]} 18. f5 {[%emt 0:07:30]} h6 {[%emt 0:10:30]} 19. Kh1 {[%emt 0:03:30]} Ba6 {[%emt 0:08:30]} 20. Re3 {[%emt 0:10:30]} Nh5 {[%emt 0:14:30]} 21. Ref3 {[%emt 0:04:30]} Kh7 {[%emt 0:03:30]} 22. Ng4 {[%emt 0:02:30]} g5 {[%emt 0:00:30]} 23. f6 {[%emt 0:09:30]} Qc5 {[%emt 0:01:30]} 24. g3 {[%emt 0:05:30]} Bc8 {[%emt 0:01:30]} 25. Nd1 {[%emt 0:01:21]} Rg8 {[%emt 0:04:30]} 26. Nde3 {[%emt 0:01:04]} Rd6 {[%emt 0:02:30]} 27. Qh2 {[%emt 0:02:16]} Rg6 {[%emt 0:02:30]} 28. Nf5 {[%emt 0:03:48]} Bxf5 {[%emt 0:03:30]} 29. Rxf5 {[%emt 0:00:30]} Re6 {[%emt 0:00:00]} 30. h4 {[%emt 0:00:38]} gxh4 {[%emt 0:00:00]} 31. Qxh4 {[%emt 0:01:30]} Nxg3+ {[%emt 0:00:00]} 32. Qxg3 {[%emt 0:00:20]} Qxc2 {[%emt 0:00:00]} 33. Qh3 {[%emt 0:01:54]} Qe2 34. Nxe5 {[%emt 0:02:04]} Rxe5 {[%emt 0:06:10]} 35. Rxe5 {[%emt 0:00:34]} Qxa2 {[%emt 0:00:15]} 36. Ref5 Qe6 {[%emt 0:00:24]} 37. R5f3 {[%emt 0:03:05]} Qe5 {[%emt 0:00:23]} 38. Rg1 {[%emt 0:01:08]} 1-0

[Event "Turkish Cup 2024"]
[Site "Denizli"]
[Date "2024.08.04"]
[Round "9"]
[White "Karaca, Yigit"]
[Black "Yildiz, Talat"]
[Result "0-1"]
[ECO "B27"]
[WhiteElo "1879"]
[BlackElo "1956"]
[Annotator "RC"]
[PlyCount "102"]
[EventDate "2024.08.01"]
[EventType "swiss"]
[EventCountry "TUR"]
[SourceTitle "playchess.com"]
[Source "ChessBase"]
[SourceQuality "1"]
[TimeControl "5400+30"]

1. e4 {[%emt 0:02:00]} c5 {[%emt 0:04:00]} 2. Nf3 {[%emt 0:00:30]} g6 {[%emt 0:00:00]} 3. c3 {[%emt 0:00:30]} Bg7 {[%emt 0:00:00]} 4. d4 {[%emt 0:00:30]} cxd4 {[%emt 0:00:30]} 5. cxd4 {[%emt 0:00:30]} d5 {[%emt 0:00:00]} 6. e5 {[%emt 0:00:00]} Nc6 {[%emt 0:00:00]} 7. Bb5 {[%emt 0:00:00]} Bg4 {[%emt 0:01:30]} 8. Bxc6+ {[%emt 0:02:30]} bxc6 {[%emt 0:01:30]} 9. Nbd2 {[%emt 0:00:30]} e6 {[%emt 0:01:30]} 10. h3 {[%emt 0:00:30]} Bxf3 {[%emt 0:00:30]} 11. Qxf3 {[%emt 0:01:30]} c5 {[%emt 0:02:30]} 12. dxc5 {[%emt 0:15:30]} Bxe5 {[%emt 0:02:30]} 13. O-O {[%emt 0:23:30]} Ne7 {[%emt 0:03:30]} 14. Rd1 {[%emt 0:04:30]} Qc8 {[%emt 0:10:30]} 15. Qe2 {[%emt 0:05:30]} Bg7 {[%emt 0:01:30]} 16. Nb3 {[%emt 0:00:30]} O-O {[%emt 0:00:30]} 17. Bf4 {[%emt 0:00:30]} Nc6 {[%emt 0:04:30]} 18. Bd6 {[%emt 0:11:30]} Rd8 {[%emt 0:00:30]} 19. f4 {[%emt 0:01:30]} a5 {[%emt 0:02:30]} 20. a4 {[%emt 0:03:30]} Rd7 {[%emt 0:02:30]} 21. Rab1 {[%emt 0:14:33]} Rb7 {[%emt 0:00:30]} 22. Nc1 {[%emt 0:02:52]} Rb4 {[%emt 0:06:30]} 23. b3 {[%emt 0:02:17]} Qb7 {[%emt 0:01:30]} 24. Kh2 {[%emt 0:04:07]} Rc8 {[%emt 0:12:30]} 25. Qf3 {[%emt 0:02:03]} Rxa4 {[%emt 0:06:30]} 26. Nd3 {[%emt 0:01:09]} Ra2 {[%emt 0:02:30]} 27. Ne5 {[%emt 0:00:12]} Qb5 {[%emt 0:06:30]} 28. Ra1 {[%emt 0:01:08]} Rxa1 {[%emt 0:03:30]} 29. Rxa1 {[%emt 0:00:02]} Nd4 {[%emt 0:02:30]} 30. Qc3 {[%emt 0:00:59]} Nxb3 {[%emt 0:00:30]} 31. Ra3 {[%emt 0:00:17]} a4 {[%emt 0:00:30]} 32. f5 {[%emt 0:00:48]} exf5 {[%emt 0:02:45]} 33. Qf3 {[%emt 0:00:21]} Rxc5 {[%emt 0:03:06]} 34. Ra2 {[%emt 0:00:36]} Rc8 {[%emt 0:00:47]} 35. Qf4 {[%emt 0:00:30]} Re8 {[%emt 0:00:54]} 36. Nf3 {[%emt 0:00:26]} Nc5 {[%emt 0:01:06]} 37. Bxc5 {[%emt 0:00:36]} Qxc5 {[%emt 0:00:30]} 38. Qxa4 {[%emt 0:00:30]} Rd8 {[%emt 0:00:00]} 39. Re2 {[%emt 0:00:13]} Bf8 {[%emt 0:01:42]} 40. Qh4 {[%emt 0:00:38]} Qd6+ {[%emt 0:00:53]} 41. g3 {[%emt 0:00:09]} d4 {[%emt 0:01:13]} 42. Rd2 {[%emt 0:00:13]} Bg7 {[%emt 0:00:32]} 43. Qf4 {[%emt 0:00:19]} Qd5 {[%emt 0:00:30]} 44. Rd3 {[%emt 0:00:17]} h6 {[%emt 0:00:35]} 45. h4 {[%emt 0:00:07]} Kh7 {[%emt 0:00:42]} 46. Qd2 {[%emt 0:01:14]} Qe4 {[%emt 0:00:44]} 47. Kg2 {[%emt 0:00:08]} Be5 {[%emt 0:01:13]} 48. Ra3 {[%emt 0:00:22]} Rc8 {[%emt 0:02:05]} 49. Ra2 {[%emt 0:01:47]} d3 {[%emt 0:00:59]} 50. Kf2 {[%emt 0:00:34]} Bd4+ {[%emt 0:00:30]} 51. Kf1 {[%emt 0:00:09]} Qxf3+ {[%emt 0:00:00]} 0-1